fUSD/lending_fUSD_20250222
["ID","MTS","AMOUNT","RATE_DAILY","PERIOD"]
[354052468,1740208243972,-534.66,0.0001153,2]
[354052470,1740208243981,-500.0,0.0001153,2]
[354052472,1740208243990,-500.0,0.0001153,2]
[354052474,1740208243999,-654.93,0.0001153,2]
[354052476,1740208244008,-1789.46,0.0001153,2]
[354052478,1740208244018,-500.0,0.00011532,2]
[354052480,1740208244027,-500.0,0.00011532,2]
[354052482,1740208244037,-500.0,0.00011532,2]
[354052484,1740208244046,-644.34936369,0.00011532,2]
[354052486,1740208244056,-172.03800808,0.00011532,2]
[354052488,1740208244065,-500.0,0.00011532,2]
[354052490,1740208244079,-500.0,0.00011532,2]
[354052492,1740208244088,-500.0,0.00011532,2]
[354052494,1740208244097,-500.0,0.00011532,2]
[354052495,1740208244110,-413.57129644,0.00011532,2]
[354052496,1740208244119,-500.0,0.00011532,2]
[354052497,1740208244129,-500.0,0.00011532,2]
[354052498,1740208244138,-493.35119828,0.00011532,2]
[354052499,1740208244148,-573.38763465,0.00011532,2]
[354052500,1740208244158,-266.07746962,0.00011532,2]
[354052501,1740208244167,-500.0,0.00011532,2]
[354052503,1740208244177,-500.0,0.00011532,2]
[354052505,1740208244187,-500.0,0.00011532,2]
[354052507,1740208244196,-497.8990335,0.00011532,2]
[354052509,1740208244205,-500.0,0.00011533,2]
[354052511,1740208244216,-500.0,0.00011533,2]
[354052513,1740208244225,-500.0,0.00011533,2]
[354052515,1740208244235,-500.0,0.00011533,2]
[354052517,1740208244244,-417.69124988,0.00011533,2]
[354052519,1740208244253,-500.0,0.00011533,2]
[354052521,1740208244263,-500.0,0.00011533,2]
[354052523,1740208244273,-500.0,0.00011533,2]
[354052525,1740208244283,-500.0,0.00011533,2]
[354052527,1740208244292,-500.0,0.00011533,2]
[354052529,1740208244302,-1621.82,0.00011533,2]
[354052531,1740208244312,-500.0,0.00011533,2]
[354052533,1740208244322,-500.0,0.00011533,2]
[354052535,1740208244331,-217.63037863,0.00011533,2]
[354052537,1740208244341,-500.0,0.00011533,2]
[354052539,1740208244351,-150.0,0.0001154,2]
[354052541,1740208244360,-150.0,0.00011544,2]
[354052543,1740208244369,-1060.0,0.00011549,2]
[354052545,1740208244380,-150.0,0.0001156,2]
[354052547,1740208244390,-150.0,0.00011576,2]
[354052549,1740208244400,-500.0,0.00011581,2]
[354052551,1740208244409,-597.7776252,0.00011581,2]
[354052553,1740208244419,-500.0,0.00011581,2]
[354052555,1740208244428,-986.08486491,0.00011581,2]
[354052557,1740208244437,-150.0,0.00011589,2]
[354052558,1740208244447,-150.0,0.00011592,2]
[354052560,1740208244456,-1000.0,0.000116,2]
[354052562,1740208244465,-472.661322,0.00011605,2]
[354052564,1740208244475,-500.0,0.00011605,2]
[354052566,1740208244484,-500.0,0.00011605,2]
[354052569,1740208244494,-500.0,0.00011605,2]
[354052570,1740208244503,-337.10144418,0.00011605,2]
[354052572,1740208244512,-500.0,0.00011605,2]
[354052574,1740208244522,-500.0,0.00011605,2]
[354052576,1740208244532,-500.0,0.00011605,2]
[354052578,1740208244541,-500.0,0.00011605,2]
[354052580,1740208244551,-500.0,0.00011605,2]
[354052582,1740208244560,-613.44,0.00011605,2]
[354052584,1740208244569,-500.0,0.00011605,2]
[354052586,1740208244579,-500.0,0.00011605,2]
[354052588,1740208244588,-671.3,0.00011605,2]
[354052590,1740208244598,-500.0,0.00011605,2]
[354052592,1740208244607,-500.0,0.00011605,2]
[354052594,1740208244617,-500.0,0.00011605,2]
[354052596,1740208244627,-500.0,0.00011605,2]
[354052598,1740208244636,-500.0,0.00011605,2]
[354052600,1740208244646,-500.0,0.00011605,2]
[354052602,1740208244655,-513.38,0.00011605,2]
[354052604,1740208244664,-612.02115726,0.00011605,2]
[354052606,1740208244674,-500.0,0.00011605,2]
[354052608,1740208244683,-500.0,0.00011605,2]
[354052610,1740208244693,-500.0,0.00011605,2]
[354052612,1740208244702,-27.97361389,0.00011605,2]
[354052632,1740208244888,-534.60638611,0.00011605,2]
[354052634,1740208244897,-500.0,0.00011605,2]
[354052636,1740208244907,-150.0,0.00011608,2]
[354052638,1740208244917,-161.05398366,0.00011612,2]
[354052640,1740208244926,-291.82029106,0.00011612,2]
[354052642,1740208244935,-500.0,0.00011612,2]
[354052644,1740208244944,-500.0,0.00011612,2]
[354052646,1740208244953,-500.0,0.00011612,2]
[354052648,1740208244962,-500.0,0.00011612,2]
[354052650,1740208244971,-500.0,0.00011612,2]
[354052652,1740208244981,-500.0,0.00011612,2]
[354052654,1740208244990,-500.0,0.00011612,2]
[354052656,1740208244999,-500.0,0.00011612,2]
[354052658,1740208245009,-500.0,0.00011612,2]
[354052660,1740208245018,-171.32422177,0.00011612,2]
[354052662,1740208245027,-500.0,0.00011612,2]
[354052664,1740208245036,-500.0,0.00011612,2]
[354052666,1740208245046,-500.0,0.00011612,2]
[354052668,1740208245055,-500.0,0.00011612,2]
[354052670,1740208245065,-500.0,0.00011612,2]
[354052672,1740208245074,-500.0,0.00011612,2]
[354052674,1740208245084,-500.0,0.00011612,2]
[354052676,1740208245093,-500.0,0.00011612,2]
[354052678,1740208245102,-500.0,0.00011612,2]
[354052680,1740208245112,-500.0,0.00011612,2]
[354052682,1740208245121,-500.0,0.00011612,2]
[354052684,1740208245130,-500.0,0.00011612,2]
[354052686,1740208245139,-500.0,0.00011612,2]
[354052688,1740208245149,-500.0,0.00011612,2]
[354052690,1740208245158,-605.25,0.00011612,2]
[354052692,1740208245167,-547.988734,0.00011612,2]
[354052694,1740208245176,-1179.57,0.00011612,2]
[354052696,1740208245186,-534.66,0.00011612,2]
[354052698,1740208245195,-500.0,0.00011612,2]
[354052700,1740208245204,-500.0,0.00011612,2]
[354052702,1740208245213,-654.93,0.00011612,2]
[354052704,1740208245223,-1789.46,0.00011612,2]
[354052706,1740208245232,-151.0,0.00011614,2]
[354052708,1740208245241,-500.0,0.00011614,2]
[354052710,1740208245250,-500.0,0.00011614,2]
[354052712,1740208245259,-500.0,0.00011614,2]
[354052714,1740208245269,-500.0,0.00011614,2]
[354052716,1740208245278,-500.0,0.00011614,2]
[354052718,1740208245287,-604.30811795,0.00011614,2]
[354052720,1740208245297,-500.0,0.00011614,2]
[354052722,1740208245306,-500.0,0.00011614,2]
[354052723,1740208245315,-500.0,0.00011614,2]
[354052725,1740208245325,-632.8654602,0.00011614,2]
[354052727,1740208245335,-500.0,0.00011614,2]
[354052729,1740208245344,-500.0,0.00011616,2]
[354052731,1740208245353,-500.0,0.00011616,2]
[354052733,1740208245362,-500.0,0.00011616,2]
[354052735,1740208245372,-500.0,0.00011616,2]
[354052737,1740208245382,-300.74642033,0.00011616,2]
[354052739,1740208245391,-500.0,0.00011616,2]
[354052741,1740208245401,-500.0,0.00011616,2]
[354052743,1740208245411,-500.0,0.00011616,2]
[354052745,1740208245420,-500.0,0.00011616,2]
[354052747,1740208245429,-1621.82,0.00011616,2]
[354052749,1740208245439,-500.0,0.00011616,2]
[354052751,1740208245448,-500.0,0.00011616,2]
[354052753,1740208245458,-500.0,0.00011616,2]
[354052755,1740208245467,-150.0,0.00011624,2]
[354052757,1740208245476,-396.02007334,0.00011629,2]
[354052759,1740208245486,-2047.42604487,0.00011635,2]
[354052761,1740208245495,-150.0,0.0001164,2]
[354052763,1740208245505,-150.0,0.00011644,2]
[354052765,1740208245515,-150.0,0.0001165,2]
[354052767,1740208245525,-150.0,0.00011656,2]
[354052769,1740208245537,-500.0,0.00011663,2]
[354052771,1740208245546,-150.0,0.00011666,2]
[354052773,1740208245556,-253.347,0.00011668,2]
[354052775,1740208245565,-150.777,0.00011668,2]
[354052777,1740208245575,-2036.632,0.00011668,2]
[354052779,1740208245584,-1279.302,0.00011668,2]
[354052781,1740208245593,-593.437,0.00011668,2]
[354052783,1740208245603,-644.631,0.00011668,2]
[354052785,1740208245612,-278.584,0.00011668,2]
[354052787,1740208245621,-213.631,0.00011668,2]
[354052789,1740208245631,-1802.1,0.00011668,2]
[354052791,1740208245640,-789.0,0.00011668,2]
[354052793,1740208245650,-1276.102,0.00011668,2]
[354052795,1740208245659,-1424.0,0.00011668,2]
[354052797,1740208245668,-907.0,0.00011668,2]
[354052799,1740208245677,-4095.512,0.00011668,2]
[354052801,1740208245687,-544.422,0.00011668,2]
[354052803,1740208245697,-150.0,0.00011672,2]
[354052805,1740208245706,-472.661322,0.00011687,2]
[354052807,1740208245715,-500.0,0.00011687,2]
[354052809,1740208245725,-500.0,0.00011687,2]
[354052811,1740208245737,-500.0,0.00011687,2]
[354052813,1740208245748,-500.0,0.00011687,2]
[354052815,1740208245757,-500.0,0.00011687,2]
[354052817,1740208245767,-500.0,0.00011687,2]
[354052819,1740208245776,-500.0,0.00011687,2]
[354052820,1740208245786,-500.0,0.00011687,2]
[354052823,1740208245796,-613.44,0.00011687,2]
[354052825,1740208245805,-500.0,0.00011687,2]
[354052826,1740208245815,-500.0,0.00011687,2]
[354052829,1740208245837,-175.657122,0.00011687,2]
[354052831,1740208245847,-671.3,0.00011687,2]
[354052833,1740208245857,-500.0,0.00011687,2]
[354052835,1740208245867,-500.0,0.00011687,2]
[354052837,1740208245879,-500.0,0.00011687,2]
[354052839,1740208245889,-500.0,0.00011687,2]
[354052841,1740208245899,-500.0,0.00011687,2]
[354052843,1740208245909,-500.0,0.00011687,2]
[354052845,1740208245919,-513.38,0.00011687,2]
[354052847,1740208245928,-222.65162328,0.00011687,2]
[354052850,1740208245949,-277.34837672,0.00011687,2]
[354052852,1740208245959,-500.0,0.00011687,2]
[354052854,1740208245968,-500.0,0.00011687,2]
[354052856,1740208245977,-562.58,0.00011687,2]
[354052857,1740208245986,-500.0,0.00011687,2]
[354052858,1740208245995,-150.0,0.00011688,2]
[354052859,1740208246004,-502.91,0.00011695,2]
[354052860,1740208246014,-500.0,0.00011695,2]
[354052861,1740208246023,-500.0,0.00011695,2]
[354052862,1740208246030,-500.0,0.00011695,2]
[354052863,1740208246039,-500.0,0.00011695,2]
[354052864,1740208246049,-500.0,0.00011695,2]
[354052866,1740208246058,-500.0,0.00011695,2]
[354052868,1740208246068,-500.0,0.00011695,2]
[354052870,1740208246077,-500.0,0.00011695,2]
[354052872,1740208246086,-61.94497715,0.00011695,2]
[354052874,1740208246098,-438.05502285,0.00011695,2]
[354052876,1740208246107,-500.0,0.00011695,2]
[354052878,1740208246116,-500.0,0.00011695,2]
[354052880,1740208246125,-317.01275231,0.00011695,2]
[354052882,1740208246134,-500.0,0.00011695,2]
[354052884,1740208246145,-500.0,0.00011695,2]
[354052886,1740208246155,-500.0,0.00011695,2]
[354052888,1740208246165,-500.0,0.00011695,2]
[354052890,1740208246175,-324.27714778,0.00011695,2]
[354052894,1740208246208,-150.0,0.00011422,2]
[354052896,1740208246217,-459.34231187,0.00011663,2]
[354052898,1740208246227,-175.72285222,0.00011695,2]
[354052900,1740208246236,-500.0,0.00011695,2]
[354052902,1740208246245,-500.0,0.00011695,2]
[354052904,1740208246255,-500.0,0.00011695,2]
[354052906,1740208246264,-500.0,0.00011695,2]
[354052908,1740208246273,-500.0,0.00011695,2]
[354052910,1740208246282,-500.0,0.00011695,2]
[354052912,1740208246291,-605.25,0.00011695,2]
[354052914,1740208246301,-547.988734,0.00011695,2]
[354052916,1740208246310,-1179.57,0.00011695,2]
[354052918,1740208246319,-534.66,0.00011695,2]
[354052920,1740208246328,-500.0,0.00011695,2]
[354052922,1740208246337,-500.0,0.00011695,2]
[354052924,1740208246346,-654.93,0.00011695,2]
[354052926,1740208246356,-1789.46,0.00011695,2]
[354052928,1740208246366,-500.0,0.00011696,2]
[354052930,1740208246376,-380.6291981,0.00011696,2]
[354052932,1740208246386,-311.16163496,0.00011696,2]
[354052934,1740208246400,-188.83836504,0.00011696,2]
[354052936,1740208246411,-500.0,0.00011696,2]
[354052938,1740208246422,-191.39623784,0.00011696,2]
[354052940,1740208246432,-500.0,0.00011696,2]
[354052942,1740208246441,-500.0,0.00011696,2]
[354052944,1740208246451,-500.0,0.00011696,2]
[354052946,1740208246461,-574.15968095,0.00011696,2]
[354052948,1740208246471,-290.6658063,0.00011698,2]
[354052950,1740208246481,-500.0,0.00011698,2]
[354052952,1740208246491,-500.0,0.00011698,2]
[354052954,1740208246501,-500.0,0.00011698,2]
[354052956,1740208246512,-500.0,0.00011698,2]
[354052958,1740208246521,-500.0,0.00011698,2]
[354052960,1740208246531,-500.0,0.00011698,2]
[354052962,1740208246540,-500.0,0.00011698,2]
[354052964,1740208246550,-1621.82,0.00011698,2]
[354052965,1740208246560,-500.0,0.00011698,2]
[354052967,1740208246569,-160.23580599,0.00011698,2]
[354052969,1740208246578,-500.0,0.00011698,2]
[354052971,1740208246588,-783.47,0.00011702,2]
[354052973,1740208246597,-880.54,0.00011702,2]
[354052975,1740208246607,-150.0,0.00011704,2]
[354052977,1740208246616,-150.0,0.00011708,2]
[354052979,1740208246625,-150.0,0.00011712,2]
[354052981,1740208246634,-150.0,0.00011712,2]
[354052983,1740208246644,-150.0,0.0001172,2]
[354052985,1740208246653,-150.0,0.00011736,2]
[354052987,1740208246662,-500.0,0.00011746,2]
[354052989,1740208246672,-421.39,0.00011747,2]
[354052991,1740208246681,-150.0,0.00011752,2]
[354052993,1740208246690,-150.0,0.00011768,2]
[354052995,1740208246699,-472.661322,0.00011769,2]
[354052997,1740208246709,-500.0,0.00011769,2]
[354052999,1740208246718,-500.0,0.00011769,2]
[354053001,1740208246729,-500.0,0.00011769,2]
[354053003,1740208246740,-500.0,0.00011769,2]
[354053005,1740208246750,-500.0,0.00011769,2]
[354053007,1740208246759,-500.0,0.00011769,2]
[354053009,1740208246769,-500.0,0.00011769,2]
[354053011,1740208246778,-500.0,0.00011769,2]
[354053013,1740208246787,-613.44,0.00011769,2]
[354053015,1740208246796,-500.0,0.00011769,2]
[354053017,1740208246806,-500.0,0.00011769,2]
[354053019,1740208246817,-671.3,0.00011769,2]
[354053021,1740208246826,-500.0,0.00011769,2]
[354053023,1740208246836,-500.0,0.00011769,2]
[354053025,1740208246844,-500.0,0.00011769,2]
[354053027,1740208246854,-500.0,0.00011769,2]
[354053029,1740208246863,-500.0,0.00011769,2]
[354053031,1740208246873,-500.0,0.00011769,2]
[354053033,1740208246882,-513.38,0.00011769,2]
[354053035,1740208246891,-500.0,0.00011769,2]
[354053037,1740208246902,-500.0,0.00011769,2]
[354053039,1740208246911,-500.0,0.00011769,2]
[354053041,1740208246920,-562.58,0.00011769,2]
[354053043,1740208246929,-500.0,0.00011769,2]
[354053045,1740208246939,-500.0,0.00011777,2]
[354053047,1740208246948,-500.0,0.00011777,2]
[354053049,1740208246957,-500.0,0.00011777,2]
[354053051,1740208246967,-500.0,0.00011777,2]
[354053053,1740208246976,-500.0,0.00011777,2]
[354053055,1740208246985,-500.0,0.00011777,2]
[354053057,1740208246995,-500.0,0.00011777,2]
[354053059,1740208247004,-369.54821193,0.00011777,2]
[354053061,1740208247013,-500.0,0.00011777,2]
[354053063,1740208247022,-500.0,0.00011777,2]
[354053065,1740208247031,-500.0,0.00011777,2]
[354053067,1740208247041,-433.83584217,0.00011777,2]
[354053069,1740208247050,-500.0,0.00011777,2]
[354053071,1740208247059,-500.0,0.00011777,2]
[354053073,1740208247068,-500.0,0.00011777,2]
[354053075,1740208247078,-500.0,0.00011777,2]
[354053077,1740208247087,-500.0,0.00011777,2]
[354053079,1740208247096,-500.0,0.00011777,2]
[354053081,1740208247105,-500.0,0.00011777,2]
[354053083,1740208247114,-181.49837626,0.00011777,2]
[354053085,1740208247123,-500.0,0.00011777,2]
[354053087,1740208247133,-500.0,0.00011777,2]
[354053089,1740208247142,-605.25,0.00011777,2]
[354053091,1740208247151,-547.988734,0.00011777,2]
[354053093,1740208247161,-1179.57,0.00011777,2]
[354053095,1740208247170,-534.66,0.00011777,2]
[354053097,1740208247179,-500.0,0.00011777,2]
[354053099,1740208247188,-500.0,0.00011777,2]
[354053101,1740208247198,-654.93,0.00011777,2]
[354053103,1740208247207,-1789.46,0.00011777,2]
[354053105,1740208247217,-500.0,0.00011778,2]
[354053107,1740208247226,-500.0,0.00011778,2]
[354053109,1740208247236,-500.0,0.00011778,2]
[354053111,1740208247245,-500.0,0.00011778,2]
[354053113,1740208247254,-228.75866868,0.00011778,2]
[354053114,1740208247264,-500.0,0.00011778,2]
[354053117,1740208247273,-500.0,0.0001178,2]
[354053118,1740208247282,-500.0,0.0001178,2]
[354053120,1740208247291,-500.0,0.0001178,2]
[354053122,1740208247301,-496.97605133,0.0001178,2]
[354053124,1740208247311,-500.0,0.0001178,2]
[354053126,1740208247320,-500.0,0.0001178,2]
[354053128,1740208247329,-500.0,0.0001178,2]
[354053130,1740208247339,-1621.82,0.0001178,2]
[354053132,1740208247348,-500.0,0.0001178,2]
[354053135,1740208247358,-500.0,0.0001178,2]
[354053136,1740208247367,-150.0,0.00011781,2]
[354053138,1740208247376,-150.0,0.00011784,2]
[354053141,1740208247386,-4300.0,0.000118,4]
[354053142,1740208247395,-150.0,0.000118,2]
[354053144,1740208247404,-150.0,0.00011816,2]
[354053147,1740208247414,-500.0,0.00011828,2]
[354053148,1740208247424,-150.0,0.00011832,2]
[354053150,1740208247433,-150.0,0.00011836,2]
[354053152,1740208247442,-150.0,0.00011848,2]
[354053154,1740208247451,-472.661322,0.00011851,2]
[354053156,1740208247461,-500.0,0.00011851,2]
[354053158,1740208247470,-500.0,0.00011851,2]
[354053160,1740208247479,-500.0,0.00011851,2]
[354053162,1740208247488,-500.0,0.00011851,2]
[354053164,1740208247497,-500.0,0.00011851,2]
[354053166,1740208247506,-500.0,0.00011851,2]
[354053168,1740208247515,-500.0,0.00011851,2]
[354053170,1740208247524,-500.0,0.00011851,2]
[354053172,1740208247533,-613.44,0.00011851,2]
[354053174,1740208247543,-500.0,0.00011851,2]
[354053176,1740208247552,-500.0,0.00011851,2]
[354053178,1740208247562,-175.657122,0.00011851,2]
[354053180,1740208247571,-671.3,0.00011851,2]
[354053182,1740208247580,-500.0,0.00011851,2]
[354053184,1740208247590,-500.0,0.00011851,2]
[354053186,1740208247599,-500.0,0.00011851,2]
[354053188,1740208247608,-500.0,0.00011851,2]
[354053190,1740208247617,-500.0,0.00011851,2]
[354053192,1740208247627,-500.0,0.00011851,2]
[354053195,1740208247638,-513.38,0.00011851,2]
[354053197,1740208247646,-351.64583813,0.00011851,2]
[354053199,1740208247655,-500.0,0.00011851,2]
[354053201,1740208247665,-500.0,0.00011851,2]
[354053203,1740208247674,-562.58,0.00011851,2]
[354053204,1740208247683,-500.0,0.00011851,2]
[354053206,1740208247692,-150.0,0.00011855,2]
[354053208,1740208247702,-500.0,0.00011859,2]
[354053209,1740208247711,-500.0,0.00011859,2]
[354053210,1740208247719,-500.0,0.00011859,2]
[354053211,1740208247729,-500.0,0.00011859,2]
[354053212,1740208247741,-500.0,0.00011859,2]
[354053213,1740208247750,-500.0,0.00011859,2]
[354053214,1740208247759,-500.0,0.00011859,2]
[354053215,1740208247769,-500.0,0.00011859,2]
[354053216,1740208247778,-500.0,0.00011859,2]
[354053218,1740208247790,-500.0,0.00011859,2]
[354053220,1740208247799,-500.0,0.00011859,2]
[354053222,1740208247808,-260.23592346,0.00011859,2]
[354053224,1740208247819,-500.0,0.00011859,2]
[354053226,1740208247827,-500.0,0.00011859,2]
[354053228,1740208247837,-500.0,0.00011859,2]
[354053230,1740208247846,-500.0,0.00011859,2]
[354053232,1740208247855,-500.0,0.00011859,2]
[354053234,1740208247864,-500.0,0.00011859,2]
[354053236,1740208247874,-500.0,0.00011859,2]
[354053238,1740208247883,-605.25,0.00011859,2]
[354053240,1740208247892,-547.988734,0.00011859,2]
[354053242,1740208247901,-1179.57,0.00011859,2]
[354053244,1740208247911,-534.66,0.00011859,2]
[354053246,1740208247920,-500.0,0.00011859,2]
[354053248,1740208247929,-500.0,0.00011859,2]
[354053250,1740208247938,-654.93,0.00011859,2]
[354053252,1740208247947,-500.0,0.0001186,2]
[354053254,1740208247956,-500.0,0.0001186,2]
[354053256,1740208247966,-500.0,0.0001186,2]
[354053258,1740208247975,-500.0,0.0001186,2]
[354053260,1740208247985,-500.0,0.0001186,2]
[354053262,1740208247994,-500.0,0.00011862,2]
[354053264,1740208248003,-155.54885489,0.00011862,2]
[354053266,1740208248012,-500.0,0.00011862,2]
[354053268,1740208248021,-500.0,0.00011862,2]
[354053269,1740208248031,-500.0,0.00011862,2]
[354053272,1740208248040,-500.0,0.00011862,2]
[354053273,1740208248050,-1621.82,0.00011862,2]
[354053275,1740208248060,-500.0,0.00011862,2]
[354053278,1740208248070,-500.0,0.00011862,2]
[354053279,1740208248079,-150.0,0.00011864,2]
[354053282,1740208248088,-2047.42604487,0.0001187,2]
[354053284,1740208248098,-150.0,0.0001188,2]
[354053286,1740208248107,-150.0,0.00011896,2]
[354053288,1740208248117,-6500.0,0.000119,4]
[354053290,1740208248126,-206.45004098,0.000119,2]
[354053292,1740208248136,-500.0,0.0001191,2]
[354053294,1740208248145,-150.0,0.00011912,2]
[354053296,1740208248154,-150.0,0.00011912,2]
[354053298,1740208248164,-150.0,0.00011918,2]
[354053300,1740208248173,-150.0,0.00011928,2]
[354053302,1740208248183,-472.661322,0.00011933,2]
[354053304,1740208248193,-500.0,0.00011933,2]
[354053306,1740208248202,-500.0,0.00011933,2]
[354053308,1740208248212,-500.0,0.00011933,2]
[354053310,1740208248221,-500.0,0.00011933,2]
[354053312,1740208248230,-500.0,0.00011933,2]
[354053313,1740208248239,-500.0,0.00011933,2]
[354053315,1740208248248,-500.0,0.00011933,2]
[354053317,1740208248257,-500.0,0.00011933,2]
[354053319,1740208248267,-613.44,0.00011933,2]
[354053321,1740208248277,-500.0,0.00011933,2]
[354053323,1740208248286,-500.0,0.00011933,2]
[354053325,1740208248296,-331.18169518,0.00011933,2]
[354053328,1740208248309,-340.11830482,0.00011933,2]
[354053330,1740208248319,-500.0,0.00011933,2]
[354053332,1740208248328,-500.0,0.00011933,2]
[354053334,1740208248337,-477.55232518,0.00011933,2]
[354053336,1740208248349,-22.44767482,0.00011933,2]
[354053338,1740208248359,-500.0,0.00011933,2]
[354053340,1740208248368,-500.0,0.00011933,2]
[354053342,1740208248378,-500.0,0.00011933,2]
[354053344,1740208248387,-243.32366468,0.00011933,2]
[354053369,1740208248625,-150.0,0.00011411,2]
[354053371,1740208248636,-150.0,0.00011458,2]
[354053373,1740208248645,-150.0,0.00011492,2]
[354053375,1740208248655,-153.80372526,0.00011499,2]
[354053377,1740208248664,-500.0,0.00011499,2]
[354053379,1740208248673,-501.31564975,0.00011859,2]
[354053573,1740208529676,510.96,8.767e-05,2]
[354053575,1740208827538,1097.11,8.678e-05,2]
[354053578,1740208917028,1242.66318,0.00010545,10]
[354053600,1740209431469,-534.5368763,9.99e-05,2]
[354053601,1740209431481,-743.93422967,9.99e-05,2]
[354053602,1740209431492,-996.04733761,9.99e-05,2]
[354053603,1740209431503,-402.92919909,9.99e-05,2]
[354053604,1740209431515,-449.32685517,9.99e-05,2]
[354053605,1740209431526,-299.99,9.99e-05,2]
[354053606,1740209431537,-352.1959996,9.99e-05,2]
[354053607,1740209431548,-614.9899999,9.99e-05,2]
[354053608,1740209431560,-988.3344858,9.99e-05,2]
[354053609,1740209431572,-1050.53320248,9.99e-05,2]
[354053610,1740209431583,-1062.34977108,9.99e-05,2]
[354053611,1740209431632,-16.38760352,9.99e-05,2]
[354053612,1740209431642,-300.0,9.999e-05,2]
[354053613,1740209431652,-150.0,9.999e-05,2]
[354053614,1740209431661,-244.50013055,9.999e-05,2]
[354053615,1740209431671,-3732.70912011,0.0001,2]
[354053616,1740209431721,-678.40065294,0.0001,2]
[354053617,1740209431732,-1962.78066715,0.0001,2]
[354053618,1740209431812,-4125.935,0.0001,2]
[354053619,1740209431823,-492.56648881,0.0001,2]
[354053620,1740209431834,-1738.66597771,0.0001,2]
[354053621,1740209431845,-2059.90069911,0.0001,2]
[354053622,1740209431857,-744.5572046,0.0001,2]
[354053623,1740209431867,-5506.28995044,0.0001,2]
[354053628,1740209437459,-7800.0,0.0001,2]
[354053629,1740209437543,-26390.01664988,0.0001,2]
[354053630,1740209437554,-5469.65215,0.0001,2]
[354053714,1740209439775,-2350.8715687,0.0001,2]
[354053715,1740209439787,-1025.9,0.0001,2]
[354053724,1740209442514,-264811.43338365,0.0001,2]
[354053726,1740209553167,158.25,0.0002,120]
[354053727,1740209628392,240.894023,9.776e-05,2]
[354053728,1740209783563,200105.94998561,0.00020133,120]
[354053730,1740209812534,173.48,8.767e-05,2]
[354053731,1740209839310,872.84,9.735e-05,2]
[354053732,1740209848379,9821.3,9.5e-05,2]
[354053737,1740209910859,2891.052,9.8e-05,2]
[354053738,1740209911081,210.426,9.8e-05,2]
[354053741,1740209914281,500.0,9.746e-05,2]
[354053743,1740209934969,5700.98,9.746e-05,2]
[354053748,1740209980997,280.42,9.735e-05,2]
[354053749,1740209998149,1852.42,9.738e-05,2]
[354053753,1740210026437,200.0,9.748e-05,2]
[354053762,1740210170830,23900.0,9.723e-05,2]
[354053763,1740210194258,1026.611373,9.775e-05,2]
[354053764,1740210204961,1135.36,8.219e-05,2]
[354053769,1740210251305,1374.9,9.729e-05,2]
[354053778,1740210335761,1000.0,9.699e-05,2]
[354053781,1740210386034,2000.0,9.722e-05,2]